fUSD/lending_fUSD_20250225
["ID","MTS","AMOUNT","RATE_DAILY","PERIOD"]
[354481110,1740525075393,-500.0,0.00047397,120]
[354481111,1740525075405,-500.0,0.00047397,120]
[354481112,1740525075415,-500.0,0.00047397,120]
[354481113,1740525075426,-500.0,0.00047397,120]
[354481114,1740525075437,-500.0,0.00047397,120]
[354481115,1740525075447,-500.0,0.00047397,120]
[354481116,1740525075457,-888.73,0.00047397,120]
[354481117,1740525075468,-1000.0,0.00047397,120]
[354481118,1740525075480,-500.0,0.00047397,120]
[354481119,1740525075489,-500.0,0.00047397,120]
[354481120,1740525075499,-530.68,0.00047397,120]
[354481121,1740525075510,-500.0,0.00047397,120]
[354481122,1740525075520,-500.0,0.00047397,120]
[354481123,1740525075531,-500.0,0.00047397,120]
[354481124,1740525075541,-500.0,0.00047397,120]
[354481125,1740525075552,-500.0,0.00047397,120]
[354481126,1740525075563,-879.47,0.00047397,120]
[354481127,1740525075573,-1193.67,0.00047397,120]
[354481128,1740525075583,-719.66,0.00047397,120]
[354481129,1740525075592,-500.0,0.00047397,120]
[354481130,1740525075603,-500.0,0.00047397,120]
[354481131,1740525075613,-360.2348554,0.00047397,120]
[354481132,1740525075623,-500.0,0.00047397,120]
[354481133,1740525075633,-657.62,0.00047397,120]
[354481134,1740525075643,-1058.68,0.00047397,120]
[354481135,1740525075655,-1324.06,0.00047397,120]
[354481136,1740525075665,-500.0,0.00047397,120]
[354481137,1740525075676,-500.0,0.00047397,120]
[354481138,1740525075686,-500.0,0.00047397,120]
[354481139,1740525075696,-500.0,0.00047397,120]
[354481140,1740525075706,-500.0,0.00047397,120]
[354481141,1740525075716,-500.0,0.00047397,120]
[354481142,1740525075726,-500.0,0.00047397,120]
[354481143,1740525075737,-1060.27,0.00047397,120]
[354481144,1740525075748,-500.0,0.00047397,120]
[354481145,1740525075758,-500.0,0.00047397,120]
[354481146,1740525075768,-500.0,0.00047397,120]
[354481147,1740525075778,-742.16,0.00047397,30]
[354481148,1740525075788,-500.0,0.00047397,120]
[354481149,1740525075798,-500.0,0.00047397,120]
[354481150,1740525075808,-979.89,0.00047397,120]
[354481151,1740525075818,-500.0,0.00047397,120]
[354481152,1740525075829,-500.0,0.00047397,120]
[354481153,1740525075839,-979.19,0.00047397,120]
[354481154,1740525075850,-526.24,0.00047397,120]
[354481155,1740525075860,-500.0,0.00047397,120]
[354481156,1740525075871,-500.0,0.00047397,120]
[354481157,1740525075881,-500.0,0.00047397,120]
[354481158,1740525075892,-500.0,0.00047397,120]
[354481159,1740525075905,-500.0,0.00047397,120]
[354481160,1740525075915,-500.0,0.00047397,120]
[354481161,1740525075926,-502.11360478,0.00047397,120]
[354481162,1740525075937,-500.0,0.00047397,120]
[354481163,1740525075947,-500.0,0.00047397,120]
[354481164,1740525075957,-1303.54,0.00047397,120]
[354481165,1740525075967,-1208.28,0.00047397,120]
[354481166,1740525075978,-500.0,0.00047397,120]
[354481167,1740525075987,-500.0,0.00047397,120]
[354481168,1740525075997,-500.0,0.00047397,120]
[354481169,1740525076007,-500.0,0.00047397,120]
[354481170,1740525076018,-500.0,0.00047397,120]
[354481171,1740525076028,-519.21,0.00047397,120]
[354481172,1740525076037,-926.21,0.00047397,120]
[354481173,1740525076047,-500.0,0.00047397,120]
[354481174,1740525076057,-151.0,0.00047397,14]
[354481175,1740525076067,-1397.64,0.00047397,120]
[354481176,1740525076077,-500.0,0.00047397,120]
[354481177,1740525076087,-990.86,0.00047397,120]
[354481178,1740525076096,-865.85,0.00047397,120]
[354481179,1740525076106,-408.61767917,0.00047397,120]
[354481180,1740525076116,-500.0,0.00047397,120]
[354481181,1740525076125,-500.0,0.00047397,120]
[354481182,1740525076135,-1052.77,0.00047397,120]
[354481183,1740525076145,-992.97,0.00047397,120]
[354481184,1740525076155,-500.0,0.00047397,120]
[354481185,1740525076165,-500.0,0.00047397,120]
[354481186,1740525076175,-500.0,0.00047397,120]
[354481187,1740525076184,-500.0,0.00047397,120]
[354481188,1740525076193,-500.0,0.00047397,120]
[354481189,1740525076203,-500.0,0.00047397,120]
[354481190,1740525076212,-500.0,0.00047397,120]
[354481191,1740525076222,-1375.47,0.00047397,120]
[354481192,1740525076231,-667.29,0.00047397,120]
[354481193,1740525076319,-572.28,0.00047397,120]
[354481194,1740525076330,-587.91,0.00047397,120]
[354481195,1740525076339,-151.0,0.00047397,14]
[354481196,1740525076349,-500.0,0.00047397,120]
[354481197,1740525076359,-500.0,0.00047397,120]
[354481198,1740525076368,-151.0,0.00047397,14]
[354481199,1740525076378,-1632.82,0.00047397,120]
[354481200,1740525076387,-153.153717,0.00047397,14]
[354481201,1740525076396,-151.0,0.00047397,14]
[354481202,1740525076408,-525.79,0.00047397,120]
[354481203,1740525076417,-500.0,0.00047397,120]
[354481204,1740525076426,-500.0,0.00047397,120]
[354481205,1740525076436,-500.0,0.00047397,120]
[354481206,1740525076445,-500.0,0.00047397,120]
[354481207,1740525076454,-700.38,0.00047397,120]
[354481208,1740525076465,-500.0,0.00047397,120]
[354481209,1740525076477,-500.0,0.00047397,120]
[354481210,1740525076486,-1439.25,0.00047397,120]
[354481211,1740525076495,-500.0,0.00047397,120]
[354481212,1740525076504,-500.0,0.00047397,120]
[354481213,1740525076514,-500.0,0.00047397,120]
[354481214,1740525076523,-500.0,0.00047397,120]
[354481215,1740525076533,-500.0,0.00047397,120]
[354481216,1740525076542,-500.0,0.00047397,120]
[354481217,1740525076552,-500.0,0.00047397,120]
[354481218,1740525076561,-500.0,0.00047397,120]
[354481219,1740525076570,-500.0,0.00047397,120]
[354481220,1740525076579,-500.0,0.00047397,120]
[354481221,1740525076589,-1112.37,0.00047397,120]
[354481222,1740525076598,-500.0,0.00047397,120]
[354481223,1740525076607,-500.0,0.00047397,120]
[354481224,1740525076616,-671.76,0.00047397,120]
[354481225,1740525076626,-151.0,0.00047397,14]
[354481226,1740525076635,-500.0,0.00047397,120]
[354481227,1740525076645,-500.0,0.00047397,120]
[354481228,1740525076656,-151.0,0.00047397,14]
[354481229,1740525076665,-500.0,0.00047397,120]
[354481230,1740525076674,-1287.45,0.00047397,120]
[354481231,1740525076684,-151.0,0.00047397,14]
[354481232,1740525076693,-500.0,0.00047397,120]
[354481233,1740525076703,-1660.96,0.00047397,120]
[354481234,1740525076712,-563.69,0.00047397,120]
[354481235,1740525076722,-500.0,0.00047397,120]
[354481236,1740525076732,-500.0,0.00047397,120]
[354481237,1740525076741,-280.66729581,0.00047397,120]
[354481238,1740525076751,-500.0,0.00047397,120]
[354481239,1740525076761,-535.69,0.00047397,60]
[354481240,1740525076771,-500.0,0.00047397,120]
[354481241,1740525076781,-500.0,0.00047397,120]
[354481242,1740525076790,-475.947027,0.00047397,14]
[354481243,1740525076799,-1565.68,0.00047397,120]
[354481244,1740525076809,-530.26,0.00047397,120]
[354481245,1740525076819,-500.0,0.00047397,120]
[354481246,1740525076829,-475.947027,0.00047397,14]
[354481247,1740525076839,-500.0,0.00047397,120]
[354481248,1740525076848,-405.50707,0.00047397,120]
[354481249,1740525076859,-500.0,0.00047397,120]
[354481250,1740525076868,-500.0,0.00047397,120]
[354481251,1740525076878,-1581.42,0.00047397,120]
[354481252,1740525076887,-500.0,0.00047397,120]
[354481253,1740525076896,-500.0,0.00047397,120]
[354481254,1740525076906,-500.0,0.00047397,120]
[354481255,1740525076916,-305.30106833,0.00047397,120]
[354481256,1740525076926,-827.4,0.00047397,120]
[354481257,1740525076935,-720.88,0.00047397,120]
[354481258,1740525076944,-519.16,0.00047397,120]
[354481259,1740525076953,-950.592313,0.00047397,120]
[354481260,1740525076963,-151.0,0.00047397,14]
[354481261,1740525076972,-1460.84,0.00047397,120]
[354481262,1740525076981,-708.99,0.00047397,120]
[354481263,1740525076991,-500.0,0.00047397,120]
[354481264,1740525077000,-508.69,0.00047397,120]
[354481265,1740525077009,-233.359948,0.00047397,14]
[354481266,1740525077019,-151.0,0.00047397,14]
[354481267,1740525077028,-500.0,0.00047397,120]
[354481268,1740525077037,-935.68,0.00047397,120]
[354481269,1740525077047,-500.0,0.00047397,120]
[354481270,1740525077058,-151.0,0.00047397,14]
[354481271,1740525077067,-547.34,0.00047397,120]
[354481272,1740525077076,-151.0,0.00047397,14]
[354481273,1740525077085,-500.0,0.00047397,120]
[354481274,1740525077095,-500.0,0.00047397,120]
[354481275,1740525077104,-500.0,0.00047397,120]
[354481276,1740525077114,-151.0,0.00047397,14]
[354481277,1740525077124,-1341.71,0.00047397,120]
[354481278,1740525077134,-500.0,0.00047397,120]
[354481279,1740525077144,-500.0,0.00047397,120]
[354481280,1740525077153,-1371.41,0.00047397,120]
[354481281,1740525077163,-500.0,0.00047397,120]
[354481282,1740525077172,-500.0,0.00047397,120]
[354481283,1740525077181,-500.0,0.00047397,120]
[354481284,1740525077191,-879.83,0.00047397,120]
[354481285,1740525077200,-500.0,0.00047397,120]
[354481286,1740525077209,-605.97,0.00047397,120]
[354481287,1740525077218,-500.0,0.00047397,120]
[354481288,1740525077226,-759.66,0.00047397,120]
[354481289,1740525077235,-500.0,0.00047397,120]
[354481290,1740525077244,-500.0,0.00047397,120]
[354481291,1740525077253,-500.0,0.00047397,120]
[354481292,1740525077262,-936.21,0.00047397,120]
[354481293,1740525077271,-543.08,0.00047397,120]
[354481294,1740525077280,-2396.25,0.00047397,120]
[354481295,1740525077289,-2160.09,0.00047397,120]
[354481296,1740525077299,-751.81,0.00047397,120]
[354481297,1740525077308,-560.72018029,0.00047397,120]
[354481298,1740525077317,-500.0,0.00047397,120]
[354481299,1740525077326,-500.0,0.00047397,120]
[354481300,1740525077335,-904.09,0.00047397,120]
[354481301,1740525077344,-500.0,0.00047397,120]
[354481302,1740525077354,-500.0,0.00047397,120]
[354481303,1740525077363,-500.0,0.00047397,120]
[354481304,1740525077373,-676.52,0.00047397,120]
[354481305,1740525077382,-161.35905913,0.00047397,120]
[354481306,1740525077391,-151.0,0.00047397,7]
[354481307,1740525077400,-1146.29,0.00047397,120]
[354481308,1740525077411,-1178.84,0.00047397,120]
[354481309,1740525077420,-619.35,0.00047397,120]
[354481310,1740525077430,-500.0,0.00047397,120]
[354481311,1740525077439,-500.0,0.00047397,120]
[354481312,1740525077448,-536.61,0.00047397,120]
[354481313,1740525077457,-500.0,0.00047397,120]
[354481314,1740525077467,-3083.43,0.00047397,120]
[354481315,1740525077479,-897.05,0.00047397,120]
[354481316,1740525077488,-151.0,0.00047397,7]
[354481317,1740525077497,-500.0,0.00047397,120]
[354481318,1740525077506,-579.37763794,0.00047397,120]
[354481319,1740525077515,-849.71,0.00047397,120]
[354481320,1740525077526,-1948.33,0.00047397,120]
[354481321,1740525077535,-500.0,0.00047397,120]
[354481322,1740525077544,-1378.91,0.00047397,120]
[354481323,1740525077555,-500.0,0.00047397,120]
[354481324,1740525077564,-633.92,0.00047397,120]
[354481325,1740525077574,-760.816773,0.00047397,14]
[354481326,1740525077583,-500.0,0.00047397,120]
[354481327,1740525077592,-764.46,0.00047397,120]
[354481328,1740525077601,-500.0,0.00047397,120]
[354481329,1740525077611,-500.0,0.00047397,120]
[354481330,1740525077620,-151.0,0.00047397,14]
[354481331,1740525077629,-151.0,0.00047397,14]
[354481332,1740525077638,-760.816773,0.00047397,14]
[354481333,1740525077647,-500.0,0.00047397,120]
[354481334,1740525077657,-907.54,0.00047397,120]
[354481335,1740525077666,-1479.7,0.00047397,120]
[354481336,1740525077675,-500.0,0.00047397,120]
[354481337,1740525077684,-500.0,0.00047397,120]
[354481338,1740525077693,-513.17458315,0.00047397,120]
[354481339,1740525077702,-654.14,0.00047397,120]
[354481340,1740525077711,-500.0,0.00047397,120]
[354481341,1740525077721,-990.79,0.00047397,120]
[354481342,1740525077730,-651.65,0.00047397,120]
[354481343,1740525077739,-500.0,0.00047397,120]
[354481344,1740525077749,-554.23,0.00047397,120]
[354481345,1740525077758,-2046.740917,0.00047397,14]
[354481346,1740525077767,-1490.61,0.00047397,120]
[354481347,1740525077776,-814.5,0.00047397,120]
[354481348,1740525077785,-968.7,0.00047397,120]
[354481349,1740525077795,-153.799941,0.00047397,14]
[354481350,1740525077804,-2046.740917,0.00047397,14]
[354481351,1740525077813,-820.79,0.00047397,120]
[354481352,1740525077822,-1502.05,0.00047397,120]
[354481353,1740525077832,-705.36,0.00047397,120]
[354481354,1740525077841,-1726.41,0.00047397,120]
[354481355,1740525077850,-500.0,0.00047397,120]
[354481356,1740525077860,-500.0,0.00047397,120]
[354481357,1740525077869,-500.0,0.00047397,120]
[354481358,1740525077878,-376.85694952,0.00047397,120]
[354481359,1740525077887,-500.0,0.00047397,120]
[354481360,1740525077896,-2905.66,0.00047397,120]
[354481361,1740525077906,-151.0,0.00047397,14]
[354481362,1740525077916,-830.57,0.00047397,120]
[354481363,1740525077925,-500.0,0.00047397,120]
[354481364,1740525077935,-500.0,0.00047397,120]
[354481365,1740525077944,-500.0,0.00047397,120]
[354481366,1740525077953,-800.38,0.00047397,120]
[354481367,1740525077963,-500.0,0.00047397,120]
[354481368,1740525077972,-500.0,0.00047397,120]
[354481369,1740525077981,-961.86,0.00047397,120]
[354481370,1740525077991,-2752.83,0.00047397,120]
[354481371,1740525078000,-500.0,0.00047397,120]
[354481372,1740525078010,-1818.4,0.00047397,120]
[354481373,1740525078020,-500.0,0.00047397,120]
[354481374,1740525078029,-500.0,0.00047397,120]
[354481375,1740525078039,-500.0,0.00047397,120]
[354481376,1740525078049,-657.75,0.00047397,120]
[354481377,1740525078058,-1159.26,0.00047397,120]
[354481378,1740525078069,-500.0,0.00047397,120]
[354481379,1740525078078,-151.0,0.00047397,14]
[354481380,1740525078088,-827.7,0.00047397,120]
[354481381,1740525078097,-500.63,0.00047397,120]
[354481382,1740525078107,-601.43,0.00047397,120]
[354481383,1740525078116,-2444.54,0.00047397,120]
[354481384,1740525078125,-277.31242878,0.00047397,120]
[354481385,1740525078135,-500.0,0.00047397,120]
[354481386,1740525078145,-500.0,0.00047397,120]
[354481387,1740525078154,-523.24,0.00047397,120]
[354481388,1740525078167,-500.0,0.00047397,120]
[354481389,1740525078176,-500.0,0.00047397,120]
[354481390,1740525078186,-2054.81,0.00047397,120]
[354481391,1740525078196,-867.84,0.00047397,120]
[354481392,1740525078217,-593.24,0.00047397,120]
[354481393,1740525078227,-500.0,0.00047397,120]
[354481394,1740525078238,-500.0,0.00047397,120]
[354481395,1740525078247,-1000.0,0.00047397,60]
[354481396,1740525078257,-500.0,0.00047397,120]
[354481397,1740525078267,-500.0,0.00047397,120]
[354481398,1740525078277,-1500.09,0.00047397,120]
[354481399,1740525078288,-500.0,0.00047397,120]
[354481400,1740525078297,-1540.89,0.00047397,120]
[354481401,1740525078307,-2723.23,0.00047397,120]
[354481402,1740525078317,-500.0,0.00047397,120]
[354481403,1740525078326,-500.0,0.00047397,2]
[354481404,1740525078336,-816.58,0.00047397,120]
[354481405,1740525078345,-859.93,0.00047397,120]
[354481406,1740525078355,-1544.98,0.00047397,120]
[354481407,1740525078364,-500.0,0.00047397,120]
[354481408,1740525078374,-500.0,0.00047397,120]
[354481409,1740525078383,-1310.03,0.00047397,120]
[354481410,1740525078393,-1069.0,0.00047397,120]
[354481411,1740525078402,-500.0,0.00047397,120]
[354481412,1740525078413,-2251.53,0.00047397,120]
[354481413,1740525078422,-500.0,0.00047397,120]
[354481414,1740525078432,-500.0,0.00047397,120]
[354481415,1740525078442,-1240.67,0.00047397,120]
[354481416,1740525078451,-590.82,0.00047397,120]
[354481417,1740525078461,-500.0,0.00047397,120]
[354481418,1740525078471,-500.0,0.00047397,120]
[354481419,1740525078483,-500.0,0.00047397,120]
[354481420,1740525078492,-500.0,0.00047397,120]
[354481421,1740525078502,-909.23,0.00047397,120]
[354481422,1740525078513,-182.723892,0.00047397,14]
[354481423,1740525078523,-166.380624,0.00047397,14]
[354481424,1740525078532,-1483.83,0.00047397,120]
[354481425,1740525078542,-182.723892,0.00047397,14]
[354481426,1740525078553,-1575.15,0.00047397,120]
[354481427,1740525078563,-166.380624,0.00047397,14]
[354481428,1740525078573,-500.0,0.00047397,120]
[354481429,1740525078582,-1677.48,0.00047397,120]
[354481430,1740525078591,-500.0,0.00047397,120]
[354481431,1740525078601,-500.0,0.00047397,120]
[354481432,1740525078611,-500.0,0.00047397,120]
[354481433,1740525078621,-500.0,0.00047397,120]
[354481434,1740525078630,-500.0,0.00047397,120]
[354481435,1740525078639,-760.61,0.00047397,120]
[354481436,1740525078649,-500.0,0.00047397,120]
[354481437,1740525078658,-500.0,0.00047397,120]
[354481438,1740525078668,-500.0,0.00047397,120]
[354481439,1740525078678,-1561.03,0.00047397,120]
[354481440,1740525078688,-533.35,0.00047397,120]
[354481441,1740525078698,-691.08,0.00047397,120]
[354481442,1740525078708,-500.0,0.00047397,120]
[354481443,1740525078718,-2537.5,0.00047397,120]
[354481444,1740525078728,-500.0,0.00047397,120]
[354481445,1740525078738,-866.4,0.00047397,120]
[354481446,1740525078747,-1461.79,0.00047397,120]
[354481447,1740525078757,-500.0,0.00047397,120]
[354481448,1740525078766,-500.0,0.00047397,120]
[354481449,1740525078776,-500.0,0.00047397,120]
[354481450,1740525078785,-315.60123821,0.00047397,120]
[354481451,1740525078796,-2958.25,0.00047397,120]
[354481452,1740525078805,-524.63,0.00047397,120]
[354481453,1740525078815,-601.52,0.00047397,120]
[354481454,1740525078825,-1000.0,0.00047397,45]
[354481455,1740525078834,-500.0,0.00047397,120]
[354481456,1740525078844,-1611.2,0.00047397,120]
[354481457,1740525078854,-500.0,0.00047397,120]
[354481458,1740525078863,-2032.36,0.00047397,30]
[354481459,1740525078873,-151.0,0.00047397,14]
[354481460,1740525078883,-2115.47,0.00047397,120]
[354481461,1740525078893,-500.0,0.00047397,120]
[354481462,1740525078902,-1849.32,0.00047397,120]
[354481463,1740525078912,-720.68,0.00047397,120]
[354481464,1740525078922,-1039.9,0.00047397,120]
[354481465,1740525078932,-151.0,0.00047397,14]
[354481466,1740525078942,-151.0,0.00047397,14]
[354481467,1740525078951,-500.0,0.00047397,120]
[354481468,1740525078961,-500.0,0.00047397,120]
[354481469,1740525078971,-554.43,0.00047397,120]
[354481470,1740525078981,-151.0,0.00047397,14]
[354481471,1740525078990,-720.96,0.00047397,120]
[354481472,1740525079000,-500.0,0.00047397,120]
[354481473,1740525079010,-151.0,0.00047397,14]
[354481474,1740525079019,-811.37,0.00047397,120]
[354481475,1740525079029,-868.28,0.00047397,120]
[354481476,1740525079039,-3035.12,0.00047397,120]
[354481477,1740525079048,-500.0,0.00047397,120]
[354481478,1740525079058,-151.0,0.00047397,14]
[354481479,1740525079067,-500.0,0.00047397,120]
[354481480,1740525079078,-500.0,0.00047397,120]
[354481481,1740525079087,-500.0,0.00047397,120]
[354481482,1740525079097,-2195.82,0.00047397,120]
[354481483,1740525079106,-500.0,0.00047397,120]
[354481484,1740525079116,-500.0,0.00047397,120]
[354481485,1740525079126,-930.8,0.00047397,120]
[354481486,1740525079136,-500.0,0.00047397,120]
[354481487,1740525079145,-500.0,0.00047397,120]
[354481488,1740525079155,-500.0,0.00047397,120]
[354481489,1740525079166,-701.76,0.00047397,120]
[354481490,1740525079176,-500.0,0.00047397,120]
[354481491,1740525079186,-500.0,0.00047397,120]
[354481492,1740525079196,-500.0,0.00047397,120]
[354481493,1740525079206,-646.64,0.00047397,120]
[354481494,1740525079216,-2520.76,0.00047397,120]
[354481495,1740525079225,-1280.1,0.00047397,120]
[354481496,1740525079235,-2539.43,0.00047397,120]
[354481497,1740525079245,-500.0,0.00047397,120]
[354481498,1740525079255,-570.3,0.00047397,120]
[354481499,1740525079265,-500.0,0.00047397,120]
[354481500,1740525079275,-500.0,0.00047397,120]
[354481501,1740525079285,-500.0,0.00047397,120]
[354481502,1740525079294,-151.0,0.00047397,14]
[354481503,1740525079304,-500.0,0.00047397,120]
[354481504,1740525079314,-546.75,0.00047397,120]
[354481505,1740525079324,-3136.51,0.00047397,120]
[354481506,1740525079334,-500.0,0.00047397,120]
[354481507,1740525079344,-976.16,0.00047397,120]
[354481508,1740525079354,-595.9683881,0.00047397,120]
[354481509,1740525079364,-500.0,0.00047397,120]
[354481510,1740525079374,-151.0,0.00047397,14]
[354481511,1740525079384,-583.37,0.00047397,30]
[354481512,1740525079394,-1269.74,0.00047397,120]
[354481513,1740525079404,-2849.14,0.00047397,120]
[354481514,1740525079415,-500.0,0.00047397,120]
[354481515,1740525079425,-500.0,0.00047397,120]
[354481516,1740525079434,-828.94,0.00047397,120]
[354481517,1740525079444,-151.0,0.00047397,14]
[354481518,1740525079454,-607.67,0.00047397,120]
[354481519,1740525079465,-500.0,0.00047397,120]
[354481520,1740525079477,-500.0,0.00047397,120]
[354481521,1740525079487,-666.23,0.00047397,120]
[354481522,1740525079497,-500.0,0.00047397,120]
[354481523,1740525079507,-500.0,0.00047397,120]
[354481524,1740525079518,-500.0,0.00047397,120]
[354481525,1740525079528,-1035.28,0.00047397,120]
[354481526,1740525079537,-209.13250367,0.00047397,120]
[354481527,1740525079547,-2106.09,0.00047397,120]
[354481528,1740525079557,-500.0,0.00047397,120]
[354481529,1740525079567,-500.0,0.00047397,120]
[354481530,1740525079577,-500.0,0.00047397,120]
[354481531,1740525079587,-859.48,0.00047397,120]
[354481532,1740525079596,-216.50770705,0.00047397,120]
[354481533,1740525079610,-500.0,0.00047397,120]
[354481534,1740525079620,-671.37,0.00047397,120]
[354481535,1740525079630,-1056.87,0.00047397,120]
[354481536,1740525079640,-500.0,0.00047397,120]
[354481537,1740525079649,-500.0,0.00047397,120]
[354481538,1740525079659,-1808.78,0.00047397,120]
[354481539,1740525079669,-547.53,0.00047397,120]
[354481540,1740525079679,-500.0,0.00047397,120]
[354481541,1740525079699,-500.0,0.00047397,120]
[354481542,1740525079710,-500.0,0.00047397,120]
[354481543,1740525079721,-265.1712417,0.00047397,120]
[354481544,1740525079731,-1200.07,0.00047397,120]
[354481545,1740525079741,-842.62,0.00047397,120]
[354481546,1740525079752,-500.0,0.00047397,120]
[354481547,1740525079762,-500.0,0.00047397,120]
[354481548,1740525079773,-739.84,0.00047397,120]
[354481549,1740525079783,-172.95844349,0.00047397,120]
[354481550,1740525079794,-500.0,0.00047397,120]
[354481551,1740525079804,-1464.08,0.00047397,120]
[354481552,1740525079814,-1838.31,0.00047397,120]
[354481553,1740525079825,-500.0,0.00047397,120]
[354481554,1740525079835,-500.0,0.00047397,120]
[354481555,1740525079846,-670.26,0.00047397,120]
[354481556,1740525079856,-500.0,0.00047397,120]
[354481557,1740525079866,-500.0,0.00047397,120]
[354481558,1740525079876,-605.29,0.00047397,120]
[354481559,1740525079886,-1098.29,0.00047397,120]
[354481560,1740525079896,-500.0,0.00047397,120]
[354481561,1740525079907,-867.36,0.00047397,120]
[354481562,1740525079917,-741.95,0.00047397,120]
[354481563,1740525079927,-662.58,0.00047397,120]
[354481564,1740525079937,-2788.075669,0.00047397,14]
[354481565,1740525079947,-500.0,0.00047397,120]
[354481566,1740525079957,-3589.26,0.00047397,120]
[354481567,1740525079967,-500.0,0.00047397,120]
[354481568,1740525079977,-558.28,0.00047397,120]
[354481569,1740525079987,-1842.112405,0.00047397,14]
[354481570,1740525079997,-1465.97,0.00047397,120]
[354481571,1740525080008,-500.0,0.00047397,120]
[354481572,1740525080018,-500.0,0.00047397,120]
[354481573,1740525080029,-1842.112405,0.00047397,14]
[354481574,1740525080039,-500.0,0.00047397,120]
[354481575,1740525080050,-1268.64,0.00047397,120]
[354481576,1740525080060,-500.0,0.00047397,120]
[354481577,1740525080070,-500.0,0.00047397,120]
[354481578,1740525080081,-597.88,0.00047397,120]
[354481579,1740525080091,-341.981363,0.00047397,14]
[354481580,1740525080102,-1357.06,0.00047397,120]
[354481581,1740525080113,-341.981363,0.00047397,14]
[354481582,1740525080123,-500.0,0.00047397,120]
[354481583,1740525080133,-169.00421739,0.00047397,120]
[354481584,1740525080143,-500.0,0.00047397,120]
[354481585,1740525080154,-500.0,0.00047397,120]
[354481586,1740525080164,-358.76781259,0.00047397,120]
[354481587,1740525080174,-500.0,0.00047397,120]
[354481588,1740525080184,-531.93,0.00047397,120]
[354481589,1740525080194,-1200.48,0.00047397,120]
[354481590,1740525080204,-502.53255146,0.00047397,120]
[354481591,1740525080217,-500.0,0.00047397,120]
[354481592,1740525080227,-500.0,0.00047397,120]
[354481593,1740525080237,-1440.59,0.00047397,120]
[354481594,1740525080247,-1210.5,0.00047397,120]
[354481595,1740525080257,-1686.17,0.00047397,120]
[354481596,1740525080267,-788.39,0.00047397,120]
[354481597,1740525080278,-500.0,0.00047397,120]
[354481598,1740525080288,-925.32,0.00047397,120]
[354481599,1740525080298,-500.0,0.00047397,120]
[354481600,1740525080308,-503.26,0.00047397,120]
[354481601,1740525080319,-500.0,0.00047397,120]
[354481602,1740525080329,-500.0,0.00047397,120]
[354481603,1740525080339,-502.41760453,0.00047397,120]
[354481604,1740525080349,-500.0,0.00047397,120]
[354481605,1740525080359,-500.0,0.00047397,120]
[354481606,1740525080369,-1716.09,0.00047397,120]
[354481607,1740525080379,-500.0,0.00047397,120]
[354481608,1740525080389,-500.0,0.00047397,120]
[354481609,1740525080400,-1821.6,0.00047397,120]